bitfinex/quotes_BTCUSD_20250418
["timestamp","ask_amount","ask_price","bid_price","bid_amount"]
[1745007471231,0.11944791,84370.0,84367.0,0.01189799]
[1745007472521,0.11944791,84370.0,84367.0,0.24895609]
[1745007483300,0.11944791,84370.0,84367.0,0.08443117]
[1745007483730,0.13130046,84370.0,84367.0,0.08443117]
[1745007484224,0.11944791,84370.0,84368.0,0.2370555]
[1745007484464,0.11944791,84370.0,84367.0,0.08443117]
[1745007484695,0.11944791,84370.0,84367.0,0.01185297]
[1745007485637,0.13130046,84370.0,84367.0,0.01185297]
[1745007488392,0.01185269,84369.0,84366.0,0.01185311]
[1745007488591,0.01185269,84369.0,84366.0,0.01197074]
[1745007489689,0.13130046,84370.0,84367.0,0.01185297]
[1745007490028,0.11944791,84370.0,84367.0,0.24891045]
[1745007495205,0.11944791,84370.0,84368.0,0.237055]
[1745007498120,0.01185129,84379.0,84375.0,0.01185185]
[1745007498311,0.13129934,84378.0,84374.0,0.24889039]
[1745007498866,0.11944791,84378.0,84376.0,0.23703231]
[1745007501598,0.0118496,84391.0,84384.0,0.23701055]
[1745007501783,0.0118496,84391.0,84384.0,0.24886113]
[1745007501784,0.13129793,84388.0,84384.0,0.24886113]
[1745007502453,0.01185016,84387.0,84384.0,0.23701055]
[1745007502654,0.11944791,84386.0,84384.0,0.23701055]
[1745007508905,0.0464,84403.0,84397.0,0.01184876]
[1745007509090,0.0118482,84401.0,84398.0,0.23697016]
[1745007509291,0.11944791,84400.0,84398.0,0.23697016]
[1745007510628,0.11944791,84400.0,84398.0,0.24928758]
[1745007513931,0.0008424,84404.0,84402.0,0.23695966]
[1745007514077,0.11944791,84403.0,84402.0,0.23695966]
[1745007515904,0.11944791,84403.0,84400.0,0.23696579]
[1745007516118,0.01184806,84402.0,84398.0,0.24881878]
[1745007516388,0.13129583,84403.0,84399.0,0.23696737]
[1745007516707,0.13129583,84403.0,84400.0,0.23696546]
[1745007517089,0.11944791,84403.0,84400.0,0.23696546]
[1745007517298,0.11944791,84403.0,84401.0,0.23696145]
[1745007524014,0.11944791,84403.0,84400.0,0.24332443]
[1745007524215,0.11944791,84403.0,84401.0,0.23696145]
[1745007525917,0.11944791,84403.0,84401.0,0.23696168]
[1745007533131,0.11944791,84403.0,84400.0,0.24881371]
[1745007533626,0.11944791,84403.0,84402.0,0.2369612]
[1745007533990,0.11944791,84403.0,84400.0,0.24881371]
[1745007545613,0.11944791,84403.0,84400.0,0.01184834]
[1745007546435,0.11944791,84403.0,84400.0,0.24881398]
[1745007554676,0.11944791,84403.0,84401.0,0.23696187]
[1745007563073,0.11944791,84403.0,84400.0,0.24881398]
[1745007570158,0.11944791,84403.0,84401.0,0.2369626]
[1745007576119,0.00097772,84404.0,84403.0,0.2369584]
[1745007576557,0.00097772,84404.0,84403.0,0.5779584]
[1745007580749,0.00097772,84404.0,84403.0,0.5779584]
[1745007591340,0.00097772,84404.0,84403.0,0.5769584]
[1745007601078,0.00097772,84404.0,84403.0,0.2369584]
[1745007606704,0.00097772,84404.0,84403.0,0.34]
[1745007607021,0.0118482,84401.0,84398.0,0.01219288]
[1745007607350,0.0118482,84401.0,84398.0,0.35184862]
[1745007607546,0.23696682,84400.0,84398.0,0.34]
[1745007607804,0.23696682,84400.0,84398.0,0.35244572]
[1745007608219,0.0118482,84401.0,84398.0,0.35244572]
[1745007608458,0.0462,84402.0,84399.0,0.01184848]
[1745007608983,0.29501158,84402.0,84398.0,0.01244572]
[1745007609184,0.23696682,84400.0,84396.0,0.34]
[1745007609663,0.2488207,84399.0,84396.0,0.34]
[1745007609984,0.01184848,84399.0,84396.0,0.34]
[1745007610629,0.24881944,84399.0,84396.0,0.34]
[1745007611236,0.24881944,84399.0,84396.0,0.35221129]
[1745007612886,0.01184848,84399.0,84396.0,0.35221129]
[1745007613286,0.24881957,84399.0,84396.0,0.01221129]
[1745007613723,0.01184862,84398.0,84394.0,0.58883174]
[1745007614413,0.01184862,84398.0,84395.0,0.01184904]
[1745007616448,0.01184848,84399.0,84396.0,0.3518489]
[1745007617899,0.01184848,84399.0,84396.0,0.58882513]
[1745007624311,0.01184848,84399.0,84396.0,0.3518489]
[1745007634287,0.01184834,84400.0,84396.0,0.3518489]
[1745007634559,0.11944791,84400.0,84398.0,0.34]
[1745007635339,0.11944791,84400.0,84398.0,0.57697095]
[1745007638324,0.00197772,84404.0,84403.0,0.07051857]
[1745007638743,0.00197772,84404.0,84403.0,0.41051857]
[1745007647755,0.00197772,84404.0,84403.0,0.24484269]
[1745007648073,0.00197772,84404.0,84403.0,0.2369584]
[1745007651185,0.00097772,84404.0,84403.0,0.2369584]
[1745007659474,0.00097772,84404.0,84403.0,0.5769584]
[1745007660078,0.00097772,84404.0,84403.0,0.34]
[1745007668698,0.23793331,84404.0,84403.0,0.34]
[1745007669121,0.00097772,84404.0,84403.0,0.34]
[1745007682664,0.35738122,84404.0,84403.0,0.34]
[1745007682908,0.23698086,84395.0,84394.0,0.01192557]
[1745007683095,0.24883882,84392.0,84389.0,0.01184988]
[1745007683261,0.24883882,84392.0,84389.0,0.35184988]
[1745007683463,0.23699388,84391.0,84389.0,0.34]
[1745007683867,0.23700332,84387.0,84386.0,0.01850739]
[1745007684065,0.36830139,84387.0,84384.0,0.01185058]
[1745007684313,0.13129807,84387.0,84384.0,0.01185058]
[1745007689244,0.11944791,84387.0,84384.0,0.01185058]
[1745007689446,0.11944791,84387.0,84386.0,0.34]
[1745007708621,0.24881673,84400.0,84394.0,0.23698367]
[1745007708797,0.23697273,84398.0,84394.0,0.01184918]
[1745007709123,0.11944791,84397.0,84394.0,0.01184918]
[1745007709272,0.11944791,84397.0,84395.0,0.23697826]
[1745007709893,0.11944791,84397.0,84394.0,0.24883096]
[1745007710500,0.13129667,84397.0,84394.0,0.24883096]
[1745007714101,0.0118489,84396.0,84392.0,0.01184946]
[1745007714301,0.13129681,84396.0,84392.0,0.01184946]
[1745007715138,0.2488299,84395.0,84392.0,0.01184946]
[1745007715553,0.2488299,84395.0,84390.0,0.54715866]
[1745007716764,0.24883667,84393.0,84390.0,0.29831678]
[1745007717375,0.01184932,84393.0,84390.0,0.31016652]
[1745007718885,0.01184932,84393.0,84390.0,0.01184974]
[1745007719614,0.24883781,84393.0,84390.0,0.01184974]
[1745007719744,0.24883781,84393.0,84387.0,0.24885348]
[1745007721095,0.01184932,84393.0,84389.0,0.23699766]
[1745007721533,0.01184946,84392.0,84389.0,0.24884754]
[1745007724346,0.24883118,84395.0,84391.0,0.24884169]
[1745007724861,0.24883118,84395.0,84391.0,0.0118496]
[1745007726740,0.11944791,84396.0,84394.0,0.23698137]
[1745007727045,0.24978297,84404.0,84400.0,0.01184834]
[1745007727222,0.11944791,84403.0,84400.0,0.01184834]
[1745007727391,0.01184806,84402.0,84398.0,0.01184862]
[1745007727601,0.01184806,84402.0,84398.0,0.24881875]
[1745007727802,0.24978297,84404.0,84403.0,0.2369584]
[1745007727803,0.00097772,84404.0,84403.0,0.2369584]
[1745007728373,0.00097772,84404.0,84401.0,0.0118482]
[1745007734707,0.00097772,84404.0,84401.0,0.24880999]
[1745007735900,0.00097772,84404.0,84403.0,0.2369584]
[1745007743717,0.00097772,84404.0,84403.0,0.5779584]
[1745007743920,0.00097772,84404.0,84403.0,0.6244584]
[1745007754492,0.00097772,84404.0,84403.0,0.5779584]
[1745007759199,0.00097772,84404.0,84403.0,0.341]
[1745007760069,0.00097772,84404.0,84403.0,0.5779584]
[1745007771227,0.00097772,84404.0,84403.0,0.5769584]
[1745007796558,0.00097772,84404.0,84403.0,0.6684584]
[1745007799988,0.00097772,84404.0,84403.0,0.3284584]
[1745007815824,1e-08,84404.0,84403.0,0.6684584]
[1745007818248,1e-08,84404.0,84403.0,0.7994184]
[1745007822300,0.0008424,84412.0,84403.0,0.7994184]
[1745007822301,1e-08,84412.0,84403.0,0.93340716]
[1745007822506,1e-08,84416.0,84415.0,0.57692471]
[1745007822645,6.413e-05,84416.0,84415.0,0.57692471]
[1745007887474,6.413e-05,84416.0,84415.0,0.42284307]
[1745007893143,6.413e-05,84416.0,84415.0,0.55348307]
[1745007902932,0.0008422,84426.0,84419.0,0.57691349]
[1745007905715,0.0008422,84426.0,84422.0,0.57690507]
[1745007905922,0.00335897,84429.0,84428.0,0.57688823]
[1745007906894,0.00335897,84429.0,84428.0,0.58862547]
[1745007917807,0.05055897,84429.0,84428.0,0.58862547]
[1745007923530,0.00435897,84429.0,84428.0,0.58862547]
[1745007947793,0.00435897,84429.0,84428.0,0.01173724]
[1745007947794,0.2412444,84429.0,84428.0,0.01173724]
[1745007947925,0.05035897,84429.0,84428.0,0.01173724]
[1745007948135,0.05035897,84429.0,84426.0,0.35184469]
[1745007948331,0.05035897,84429.0,84426.0,0.36395784]
[1745007948532,0.11944791,84428.0,84426.0,0.35211315]
[1745007949875,0.11944791,84428.0,84426.0,0.24900576]
[1745007951004,0.11944791,84428.0,84427.0,0.34]
[1745007951179,0.12044791,84428.0,84427.0,0.34]
[1745007961266,0.12044791,84428.0,84426.0,0.01211315]
[1745007961616,0.36918232,84428.0,84424.0,0.01184497]
[1745007962623,0.01184455,84427.0,84424.0,0.01184497]
[1745007962760,0.11944791,84426.0,84425.0,0.34]
[1745007963175,0.11944791,84426.0,84425.0,0.35173019]
[1745007963386,0.11944791,84426.0,84425.0,0.58862504]
[1745007971710,0.11944791,84426.0,84425.0,0.24862504]
[1745007974366,0.11949598,84426.0,84425.0,0.24862504]
[1745007978474,0.11949598,84426.0,84425.0,0.24862504]
[1745007986073,0.11949598,84426.0,84418.0,0.01184581]
[1745007986074,0.11949598,84426.0,84412.0,0.01184665]
[1745007986315,0.24875946,84419.0,84412.0,0.01184665]
[1745007986513,0.11944791,84418.0,84415.0,0.01184623]
[1745007987182,0.36821085,84418.0,84415.0,0.01184623]
[1745007987384,0.36821085,84418.0,84415.0,0.02402844]
[1745007987582,0.36821085,84418.0,84415.0,0.01184623]
[1745007987727,0.36821085,84418.0,84415.0,0.0235307]
[1745007989984,0.13129372,84418.0,84415.0,0.0235307]
[1745007990571,0.11944791,84418.0,84416.0,0.34]
[1745007990953,0.24874673,84424.0,84419.0,0.01184567]
[1745007991132,0.01184525,84422.0,84419.0,0.01184567]
[1745007991333,0.11944791,84421.0,84419.0,0.01184567]
[1745007992091,0.11944791,84421.0,84418.0,0.23691486]
[1745007994482,0.11944791,84421.0,84418.0,0.24876067]
[1745007997752,0.11944791,84421.0,84419.0,0.34]
[1745008013424,0.01184553,84420.0,84417.0,0.01184595]
[1745008013679,0.13129344,84420.0,84416.0,0.58876527]
[1745008013950,0.11944791,84420.0,84418.0,0.34]
[1745008017156,0.11944791,84420.0,84417.0,0.24876262]
[1745008018645,0.11944791,84419.0,84415.0,0.01168447]
[1745008018863,0.2369191,84417.0,84415.0,0.01168447]
[1745008019079,0.11944791,84416.0,84413.0,0.24877541]
[1745008019310,0.11944791,84416.0,84414.0,0.57692536]
[1745008021153,0.11944791,84416.0,84414.0,0.58866909]
[1745008033835,0.11944791,84416.0,84414.0,0.01174373]
[1745008034008,0.11944791,84416.0,84398.0,0.33236987]
[1745008034009,0.24879033,84409.0,84401.0,0.0118482]
[1745008034208,0.01184707,84409.0,84402.0,0.01184806]
[1745008034411,0.01184707,84409.0,84406.0,0.34]
[1745008034612,0.11944791,84408.0,84406.0,0.58879628]
[1745008035220,0.11944791,84408.0,84406.0,0.60083075]
[1745008035933,0.11944791,84408.0,84406.0,0.26083075]
[1745008037676,0.11944791,84408.0,84406.0,0.01203447]
[1745008037877,0.01184792,84403.0,84399.0,0.01184848]
[1745008038105,0.01184792,84403.0,84398.0,0.2369707]
[1745008038106,0.0118482,84401.0,84398.0,0.2369707]
[1745008038323,0.0118482,84401.0,84398.0,0.24901827]
[1745008038630,0.24880658,84403.0,84399.0,0.23696848]
[1745008038834,0.24880658,84403.0,84398.0,0.26086689]
[1745008039643,0.24880658,84403.0,84399.0,0.01184848]
[1745008040503,0.01184806,84402.0,84399.0,0.01184848]
[1745008042234,0.24881095,84402.0,84399.0,0.01184848]
[1745008046335,0.01184792,84403.0,84399.0,0.01184848]
[1745008046613,0.01184792,84403.0,84400.0,0.01184834]
[1745008047308,0.24880787,84403.0,84400.0,0.01184834]
[1745008051194,0.01184792,84403.0,84400.0,0.01184834]
[1745008051392,0.24880799,84403.0,84400.0,0.01184834]
[1745008059333,0.24881035,84402.0,84399.0,0.01184848]
[1745008059550,0.01184806,84402.0,84399.0,0.24881637]
[1745008062347,0.01184806,84402.0,84399.0,0.01184848]
[1745008064190,0.11944791,84408.0,84402.0,0.2369612]
[1745008064400,0.29377746,84413.0,84402.0,0.2369612]
[1745008064401,0.001,84416.0,84413.0,0.01184651]
[1745008064605,0.01184623,84415.0,84409.0,0.24878722]
[1745008064802,0.01184623,84415.0,84409.0,0.01184707]
[1745008065030,0.01184623,84415.0,84412.0,0.01184665]
[1745008066074,0.01184623,84415.0,84412.0,0.24877919]
[1745008068033,0.01184623,84415.0,84412.0,0.01184665]
[1745008068553,0.01184623,84415.0,84412.0,0.24877835]
[1745008069668,0.01184623,84415.0,84412.0,0.06251251]
[1745008070658,0.01184623,84415.0,84412.0,0.07435916]
[1745008072195,0.01184623,84415.0,84412.0,0.01184665]
[1745008079393,0.01184651,84413.0,84409.0,0.01184707]
[1745008079697,0.01184651,84413.0,84410.0,0.24878366]
[1745008079904,0.01184665,84412.0,84409.0,0.24878752]
[1745008080636,0.01184651,84413.0,84410.0,0.24878422]
[1745008080935,0.01184637,84414.0,84411.0,0.01184679]
[1745008086643,0.24878893,84409.0,84404.0,0.01184777]
[1745008086841,0.11944791,84409.0,84407.0,0.34]
[1745008087049,0.11944791,84409.0,84407.0,0.57694569]
[1745008100287,0.01184539,84421.0,84416.0,0.2487662]
[1745008100488,0.11944791,84420.0,84417.0,0.24876274]
[1745008100913,0.11944791,84420.0,84419.0,0.34]
[1745008101117,4.807e-05,84426.0,84425.0,0.23689665]
[1745008101484,4.807e-05,84426.0,84425.0,0.57689665]
[1745008151407,0.11949598,84426.0,84425.0,0.34]
[1745008152558,0.12049598,84426.0,84425.0,0.34]
[1745008164119,0.12049598,84426.0,84424.0,0.23689923]
[1745008164277,0.11944791,84425.0,84424.0,0.23689923]
[1745008169250,0.11944791,84425.0,84423.0,0.01184511]
[1745008169388,0.11944791,84425.0,84422.0,0.01184525]
[1745008169637,0.35634471,84425.0,84422.0,0.01184525]
[1745008169992,0.01184511,84423.0,84420.0,0.01184553]
[1745008170211,0.01184525,84422.0,84418.0,0.57691472]
[1745008170380,0.01184525,84422.0,84418.0,0.34]
[1745008170381,0.11944791,84421.0,84418.0,0.34]
[1745008170696,0.11944791,84421.0,84418.0,0.58876009]
[1745008171319,0.11944791,84421.0,84419.0,0.23691146]
[1745008188060,0.11944791,84421.0,84416.0,0.01184609]
[1745008188258,0.11944791,84421.0,84416.0,0.34]
[1745008188259,0.01184581,84418.0,84416.0,0.34]
[1745008188483,0.01184567,84419.0,84416.0,0.35184609]
[1745008188886,0.36820377,84421.0,84417.0,0.01184595]
[1745008194657,0.36820377,84421.0,84416.0,0.24876534]
[1745008195470,0.36820377,84421.0,84417.0,0.01184595]
[1745008198180,0.01184553,84420.0,84416.0,0.01184609]
[1745008198327,0.13129344,84420.0,84416.0,0.01184609]
[1745008200309,0.11944791,84420.0,84417.0,0.01184595]
[1745008200507,0.11944791,84420.0,84418.0,0.23691405]
[1745008210320,4.807e-05,84426.0,84425.0,0.23689665]
[1745008210530,0.11949598,84426.0,84425.0,0.23689665]
[1745008215539,4.807e-05,84426.0,84425.0,0.23689665]
[1745008260306,4.807e-05,84426.0,84420.0,0.01184553]
[1745008260307,0.24875855,84420.0,84413.0,0.23693033]
[1745008260506,0.24875855,84420.0,84408.0,0.01184721]
[1745008260507,0.01184567,84419.0,84414.0,0.01184637]
[1745008260686,0.01184595,84417.0,84412.0,0.24877823]
[1745008260882,0.24876747,84417.0,84413.0,0.01184651]
[1745008262638,0.01184567,84419.0,84415.0,0.01184623]
[1745008263527,0.01184567,84419.0,84416.0,0.01184609]
[1745008265852,0.01184567,84419.0,84416.0,0.24876667]
[1745008266459,0.01184567,84419.0,84416.0,0.01184609]
[1745008266646,0.24876106,84419.0,84416.0,0.01184609]
[1745008268533,0.01184567,84419.0,84416.0,0.01184609]
[1745008269319,0.01184581,84418.0,84415.0,0.01184623]
[1745008270877,0.24876229,84418.0,84415.0,0.01184623]
[1745008274377,0.24876229,84418.0,84414.0,0.24877213]
[1745008274378,0.01184595,84417.0,84414.0,0.01184637]
[1745008276036,0.01184595,84417.0,84414.0,0.24877203]
[1745008278870,0.01184567,84419.0,84416.0,0.23692191]
[1745008279034,0.11944791,84420.0,84417.0,0.24876317]
[1745008280091,0.11944791,84420.0,84417.0,0.01184595]
[1745008281407,0.11944791,84420.0,84418.0,0.23691629]
[1745008281803,0.11944791,84420.0,84417.0,0.01184595]
[1745008282007,0.11944791,84420.0,84417.0,0.24876321]
[1745008282328,0.11944791,84420.0,84417.0,0.01184595]
[1745008283216,0.11944791,84420.0,84418.0,0.23691462]
[1745008284021,0.11944791,84420.0,84417.0,0.24876345]
[1745008285439,0.11944791,84420.0,84418.0,0.23691492]
[1745008287146,0.11944791,84420.0,84417.0,0.24876345]
[1745008287753,0.11944791,84420.0,84418.0,0.23691475]
[1745008289787,0.01184441,84428.0,84423.0,0.01184511]
[1745008289993,0.11944791,84425.0,84423.0,0.01184511]
[1745008292851,0.11944791,84425.0,84423.0,0.24874551]
[1745008298130,0.11944791,84425.0,84423.0,0.01184511]
[1745008298335,0.11944791,84425.0,84420.0,0.01184553]
[1745008298609,0.13129274,84425.0,84422.0,0.24874905]
[1745008299190,0.11944791,84425.0,84422.0,0.24874905]
[1745008299798,0.11944791,84425.0,84423.0,0.23690011]
[1745008300680,0.11944791,84425.0,84422.0,0.24874905]
[1745008305855,0.11944791,84425.0,84424.0,0.23689945]
[1745008306244,0.11944791,84425.0,84422.0,0.24874905]
[1745008307439,0.11944791,84425.0,84423.0,0.23690107]
[1745008310464,0.11944791,84425.0,84422.0,0.01184525]
[1745008311084,0.11944791,84425.0,84423.0,0.23690107]
[1745008311660,0.11944791,84425.0,84422.0,0.01184525]
[1745008313415,0.36818945,84425.0,84420.0,0.01184553]
[1745008313620,0.36818945,84425.0,84421.0,0.01184539]
[1745008314516,0.13129274,84425.0,84421.0,0.01184539]
[1745008320400,0.13129274,84425.0,84420.0,0.01184553]
[1745008320647,0.01184497,84424.0,84420.0,0.24875454]
[1745008321471,0.01184511,84423.0,84420.0,0.24875454]
[1745008322582,0.01184497,84424.0,84421.0,0.24875186]
[1745008323121,0.11944791,84425.0,84422.0,0.24874849]
[1745008327276,0.13129274,84425.0,84422.0,0.24874849]
[1745008329272,0.11944791,84425.0,84422.0,0.24874849]
[1745008330762,0.11944791,84425.0,84423.0,0.23690015]
[1745008331207,4.807e-05,84426.0,84425.0,0.23689665]
[1745008353424,4.807e-05,84426.0,84424.0,0.23689945]
[1745008355851,4.807e-05,84426.0,84424.0,0.23689714]
[1745008361907,4.807e-05,84426.0,84423.0,0.24874446]
[1745008362114,4.807e-05,84426.0,84424.0,0.23689714]
[1745008387584,0.01184511,84423.0,84418.0,0.03034805]
[1745008387795,0.01184511,84423.0,84420.0,0.01184553]
[1745008387972,0.01184511,84423.0,84420.0,0.24875489]
[1745008388389,0.01184511,84423.0,84420.0,0.01184553]
[1745008388604,0.24874442,84424.0,84421.0,0.01184539]
[1745008389221,0.01184511,84423.0,84420.0,0.01184553]
[1745008389421,0.24874442,84424.0,84421.0,0.24875326]
[1745008389622,0.24874442,84424.0,84421.0,0.01184539]
[1745008390122,0.01184511,84423.0,84420.0,0.01184553]
[1745008391226,0.01184511,84423.0,84420.0,0.24875488]
[1745008391724,0.01184511,84423.0,84420.0,0.01184553]
[1745008392185,0.01184511,84423.0,84420.0,0.24875487]
[1745008392664,0.24874442,84424.0,84420.0,0.24875487]
[1745008393421,0.24875153,84422.0,84419.0,0.01184567]
[1745008393623,0.01184539,84421.0,84418.0,0.26726191]
[1745008394055,0.01184539,84421.0,84418.0,0.03034805]
[1745008394265,0.01184525,84422.0,84419.0,0.01184567]
[1745008394463,0.01184525,84422.0,84418.0,0.03034805]
[1745008394669,0.24875187,84422.0,84418.0,0.03034805]
[1745008394876,0.01184539,84421.0,84418.0,0.01850224]
[1745008395190,0.24875467,84421.0,84418.0,0.01850224]
[1745008395389,0.23691349,84419.0,84418.0,0.01850224]
[1745008396929,0.3563614,84419.0,84418.0,0.01850224]
[1745008397138,0.3573614,84419.0,84418.0,0.01850224]
[1745008424148,0.24877232,84415.0,84410.0,0.42042834]
[1745008424333,0.11944791,84414.0,84410.0,0.42042834]
[1745008425500,0.11944791,84414.0,84412.0,0.01184665]
[1745008425857,0.24877684,84413.0,84410.0,0.18349068]
[1745008426085,0.01184651,84413.0,84410.0,0.42042772]
[1745008429951,0.11944791,84414.0,84412.0,0.23693313]
[1745008430284,0.11944791,84414.0,84411.0,0.01184679]
[1745008433868,0.11944791,84414.0,84411.0,0.24878119]
[1745008437533,0.11944791,84414.0,84411.0,0.09758757]
[1745008438636,0.11944791,84414.0,84411.0,0.10943436]
[1745008460560,0.13129428,84414.0,84411.0,0.01184679]
[1745008461206,0.01184651,84413.0,84409.0,0.24878637]
[1745008461405,0.01184651,84413.0,84410.0,0.01184693]
[1745008462697,0.01184651,84413.0,84410.0,0.24878471]
[1745008473736,0.36822281,84414.0,84413.0,0.23693033]
[1745008473737,0.11944791,84414.0,84413.0,0.23693033]
[1745008473911,0.11944791,84414.0,84411.0,0.24878015]
[1745008474658,0.11944791,84414.0,84412.0,0.23693088]
[1745008474841,0.01184483,84425.0,84422.0,0.01184525]
[1745008475045,0.11944791,84425.0,84423.0,0.01184511]
[1745008476956,0.11944791,84425.0,84423.0,0.2487453]
[1745008477711,0.11944791,84425.0,84423.0,0.01184511]
[1745008480071,0.11944791,84425.0,84424.0,0.23689945]
[1745008481243,4.807e-05,84426.0,84424.0,0.23689945]
[1745008481452,0.11949598,84426.0,84424.0,0.23689945]
[1745008481902,0.11949598,84426.0,84423.0,0.01184511]
[1745008485259,0.11949598,84426.0,84424.0,0.23689945]
[1745008494630,0.11949598,84426.0,84423.0,0.24874522]
[1745008496789,0.11949598,84426.0,84423.0,0.01184511]
[1745008496990,0.11949598,84426.0,84423.0,0.24874533]
[1745008500845,0.11949598,84426.0,84425.0,0.23689665]
[1745008504081,0.11949598,84426.0,84423.0,0.24874533]
[1745008504839,0.13134067,84426.0,84422.0,0.24874781]
[1745008505157,0.13134067,84426.0,84423.0,0.24874577]
[1745008505562,0.13134067,84426.0,84423.0,0.01184511]
[1745008506489,0.13134067,84426.0,84422.0,0.24874781]
[1745008510168,0.11949598,84426.0,84423.0,0.24874552]
[1745008512453,0.13134067,84426.0,84423.0,0.24874552]
[1745008514368,0.11949598,84426.0,84424.0,0.23689758]
[1745008516184,0.11949598,84426.0,84423.0,0.24874552]
[1745008518184,0.11949598,84426.0,84425.0,0.23689665]
[1745008529015,0.11949598,84426.0,84423.0,0.24874552]
[1745008529177,0.11949598,84426.0,84424.0,0.23689727]
[1745008530879,0.11949598,84426.0,84424.0,0.23689727]
[1745008538673,4.807e-05,84426.0,84424.0,0.23689727]
[1745008562220,4.807e-05,84426.0,84422.0,0.24874461]
[1745008562434,4.807e-05,84426.0,84423.0,0.01184511]
[1745008563780,4.807e-05,84426.0,84423.0,0.24874481]
[1745008563930,4.807e-05,84426.0,84424.0,0.23689673]
[1745008564131,4.807e-05,84426.0,84423.0,0.24874481]
[1745008564458,0.01189276,84426.0,84423.0,0.24874481]
[1745008567733,0.24874148,84425.0,84422.0,0.01184525]
[1745008568124,0.01184483,84425.0,84422.0,0.01184525]
[1745008568675,0.01184483,84425.0,84422.0,0.24874882]
[1745008570039,0.01189276,84426.0,84423.0,0.01184511]
[1745008571688,0.24878823,84426.0,84423.0,0.01184511]
[1745008571870,0.24874305,84425.0,84421.0,0.05901279]
[1745008572451,0.01184483,84425.0,84421.0,0.05901279]
[1745008573694,0.01184483,84425.0,84422.0,0.01184525]
[1745008574311,4.807e-05,84426.0,84423.0,0.01184511]
[1745008575125,4.807e-05,84426.0,84423.0,0.24874646]
[1745008575466,0.01189276,84426.0,84422.0,0.24874903]
[1745008577638,0.01189276,84426.0,84423.0,0.24874579]
[1745008577860,0.01184497,84424.0,84420.0,0.01184553]
[1745008578077,0.13134067,84426.0,84421.0,0.01184539]
[1745008578291,0.24874148,84425.0,84421.0,0.24875057]
[1745008578598,0.01184483,84425.0,84421.0,0.24875057]
[1745008579248,0.13134067,84426.0,84422.0,0.01184525]
[1745008579456,0.01184511,84423.0,84419.0,0.01184567]
[1745008580294,0.01184511,84423.0,84419.0,0.23691224]
[1745008580462,0.01184511,84423.0,84419.0,0.24875791]
[1745008581767,0.01184511,84423.0,84419.0,0.01184567]
[1745008582025,0.01184539,84421.0,84416.0,0.24876716]
[1745008582253,0.01184581,84418.0,84414.0,0.24877263]
[1745008582500,0.01184567,84419.0,84415.0,0.01184623]
[1745008586536,0.01184567,84419.0,84415.0,0.24876879]
[1745008587593,0.1312933,84421.0,84417.0,0.23691769]
[1745008588626,0.1312933,84421.0,84417.0,0.24876364]
[1745008589045,0.3682032,84421.0,84417.0,0.24876364]
[1745008589637,0.1312933,84421.0,84417.0,0.24876364]
[1745008590226,0.01184553,84420.0,84417.0,0.24876398]
[1745008591551,0.1312933,84421.0,84417.0,0.24876398]
[1745008592921,0.11944791,84421.0,84418.0,0.24875965]
[1745008593759,0.11944791,84421.0,84419.0,0.23691232]
[1745008599961,0.11944791,84421.0,84420.0,0.34]
[1745008605108,0.11944791,84421.0,84419.0,0.34]
[1745008605283,0.11944791,84421.0,84420.0,0.23691068]
[1745008610859,0.11944791,84421.0,84419.0,0.34]
[1745008611420,0.11944791,84421.0,84419.0,0.57691211]
[1745008612617,0.11944791,84421.0,84419.0,0.34]
[1745008612771,0.11944791,84421.0,84418.0,0.01184581]
[1745008613694,0.11944791,84421.0,84419.0,0.23691192]
[1745008615231,0.11944791,84421.0,84420.0,0.34]
[1745008616350,0.11944791,84421.0,84419.0,0.34]
[1745008620511,0.11944791,84421.0,84419.0,0.57691165]
[1745008627542,0.11944791,84421.0,84419.0,0.34]
[1745008628360,0.11944791,84421.0,84419.0,0.57691195]
[1745008631178,0.11944791,84421.0,84419.0,0.57691209]
[1745008631590,0.11944791,84421.0,84419.0,0.23691209]
[1745008632983,0.11944791,84421.0,84419.0,0.0696394]
[1745008638427,0.11944791,84421.0,84418.0,0.248761]
[1745008638635,0.11944791,84421.0,84419.0,0.23691221]
[1745008640367,0.11944791,84421.0,84418.0,0.248761]
[1745008640669,0.11944791,84421.0,84419.0,0.23691208]
[1745008641477,0.11944791,84421.0,84419.0,0.23691214]
[1745008643186,0.36820265,84421.0,84418.0,0.01184581]
[1745008643400,0.36820265,84421.0,84413.0,0.23692881]
[1745008643401,0.23694067,84410.0,84399.0,0.01184848]
[1745008643601,0.11944791,84409.0,84400.0,0.29791128]
[1745008644237,0.11944791,84409.0,84394.0,0.23740403]
[1745008644238,0.11944791,84409.0,84395.0,0.01184904]
[1745008644453,0.11944791,84409.0,84400.0,0.34]
[1745008645507,0.16494791,84409.0,84400.0,0.34]
[1745008650465,0.11944791,84409.0,84400.0,0.34]
[1745008652785,0.11944791,84409.0,84399.0,0.29791128]
[1745008657764,0.11944791,84409.0,84398.0,0.01195406]
[1745008658012,0.11944791,84409.0,84399.0,0.29791128]
[1745008658695,0.11944791,84409.0,84398.0,0.01195406]
[1745008658931,0.11944791,84409.0,84400.0,0.24881237]
[1745008659187,0.11944791,84409.0,84401.0,0.0118482]
[1745008659417,0.11944791,84409.0,84400.0,0.01184834]
[1745008660053,0.11944791,84409.0,84399.0,0.64975976]
[1745008661110,0.11944791,84409.0,84398.0,0.24892531]
[1745008661111,0.11944791,84409.0,84398.0,0.01195406]
[1745008661334,0.11944791,84409.0,84399.0,0.29791128]
[1745008661560,0.11944791,84409.0,84398.0,0.01195406]
[1745008662051,0.11944791,84409.0,84399.0,0.29791128]
[1745008664510,0.11944791,84409.0,84399.0,0.30975976]
[1745008666224,0.11944791,84409.0,84399.0,0.29791128]
[1745008666450,0.01184806,84402.0,84399.0,0.15967095]
[1745008666707,0.13129611,84401.0,84398.0,0.02380268]
[1745008668176,0.36826012,84401.0,84398.0,0.02380268]
[1745008668409,0.13129611,84401.0,84398.0,0.02380268]
[1745008671265,0.3682622,84401.0,84398.0,0.01195406]
[1745008671466,0.01184834,84400.0,84397.0,0.35184876]
[1745008671702,0.11944791,84399.0,84397.0,0.35184876]
[1745008672814,0.11949298,84399.0,84397.0,0.35184876]
[1745008673741,0.11949298,84399.0,84397.0,0.0117313]
[1745008673892,0.3564649,84399.0,84397.0,0.0117313]
[1745008674252,0.3564649,84399.0,84396.0,0.34]
[1745008674442,0.11949298,84399.0,84396.0,0.35171944]
[1745008674644,0.11949298,84399.0,84396.0,0.36356834]
[1745008674805,0.11949298,84399.0,84396.0,0.60054447]
[1745008675328,0.11949298,84399.0,84396.0,0.36356834]
[1745008675555,0.13134146,84399.0,84396.0,0.36356834]
[1745008681741,0.13134146,84399.0,84396.0,0.60054458]
[1745008683101,0.11949298,84399.0,84398.0,0.34]
[1745008690139,0.11949298,84399.0,84397.0,0.57697321]
[1745008694481,0.11949298,84399.0,84397.0,0.34]
[1745008694809,0.13134146,84399.0,84396.0,0.01171944]
[1745008694965,0.36831313,84399.0,84396.0,0.35171944]
[1745008695297,0.13134146,84399.0,84396.0,0.34]
[1745008696054,0.01184876,84397.0,84396.0,0.01168534]